fUST/lending_fUST_20260201
["ID","MTS","AMOUNT","RATE_DAILY","PERIOD"]
[404154941,1769885438807,-500.0,0.000177,2]
[404154943,1769885438817,-500.0,0.000177,2]
[404154945,1769885438826,-500.0,0.000177,2]
[404154946,1769885438836,-500.0,0.000177,2]
[404154948,1769885438845,-500.0,0.000177,2]
[404154951,1769885438855,-500.0,0.000177,2]
[404154952,1769885438864,-500.0,0.000177,2]
[404154955,1769885438882,-500.0,0.000177,2]
[404154957,1769885438891,-500.0,0.000177,2]
[404154958,1769885438901,-500.0,0.000177,2]
[404154960,1769885438911,-500.0,0.000177,2]
[404154962,1769885438920,-500.0,0.000177,2]
[404154964,1769885438930,-500.0,0.000177,2]
[404154966,1769885438939,-500.0,0.000177,2]
[404154968,1769885438948,-222.16623703,0.000177,2]
[404154970,1769885438957,-500.0,0.000177,2]
[404154972,1769885438966,-500.0,0.000177,2]
[404154974,1769885438976,-500.0,0.000177,2]
[404154976,1769885438986,-500.0,0.000177,2]
[404154978,1769885438996,-500.0,0.000177,2]
[404154980,1769885439006,-500.0,0.000177,2]
[404154982,1769885439016,-73.88937117,0.000177,2]
[404154985,1769885439027,-426.11062883,0.000177,2]
[404154987,1769885439037,-534.21071397,0.000177,2]
[404154989,1769885439046,-167.73496741,0.000177,2]
[404154990,1769885439056,-500.0,0.000177,2]
[404154992,1769885439066,-530.77959012,0.000177,2]
[404154994,1769885439076,-500.0,0.00017701,2]
[404154996,1769885439086,-500.0,0.00017701,2]
[404154998,1769885439095,-500.0,0.00017701,2]
[404155001,1769885439105,-500.0,0.00017701,2]
[404155003,1769885439115,-224.813985,0.00017701,2]
[404155005,1769885439128,-106151.9560404,0.00017702,2]
[404155007,1769885439138,-805.39,0.00017792,3]
[404155009,1769885439148,-300.0,0.00017802,2]
[404155011,1769885439158,-300.0,0.00017802,2]
[404155013,1769885439169,-300.0,0.00017802,2]
[404155015,1769885439179,-300.0,0.00017802,2]
[404155017,1769885439190,-300.0,0.00017802,2]
[404155019,1769885439200,-300.0,0.00017802,2]
[404155021,1769885439210,-300.0,0.00017802,2]
[404155023,1769885439221,-300.0,0.00017802,2]
[404155025,1769885439231,-300.0,0.00017802,2]
[404155027,1769885439240,-300.0,0.00017802,2]
[404155029,1769885439249,-300.0,0.00017802,2]
[404155031,1769885439260,-300.0,0.00017802,2]
[404155033,1769885439270,-300.0,0.00017802,2]
[404155035,1769885439279,-300.0,0.00017802,2]
[404155037,1769885439289,-300.0,0.00017802,2]
[404155039,1769885439298,-500.0,0.00017975,2]
[404155041,1769885439308,-600.0,0.00018157,2]
[404155043,1769885439317,-500.0,0.00018249,2]
[404155045,1769885439327,-1680.0,0.00018337,2]
[404155047,1769885439336,-500.0,0.00018523,2]
[404155049,1769885439346,-236.20814299,0.00018618,2]
[404155050,1769885439355,-628.62423188,0.00018797,2]
[404155052,1769885439364,-420.0,0.00019006,2]
[404155055,1769885439376,-420.0,0.00019053,2]
[404155056,1769885439386,-420.0,0.00019053,2]
[404155058,1769885439396,-420.0,0.00019053,2]
[404155060,1769885439405,-420.0,0.00019053,2]
[404155062,1769885439415,-327.62,0.00019062,3]
[404155064,1769885439424,-1270.7557,0.00019178,2]
[404155066,1769885439433,-200.0,0.00019178,2]
[404155069,1769885439443,-157.34,0.000194,2]
[404155070,1769885439452,-811.16,0.000194,2]
[404155072,1769885439462,-169.16,0.000195,2]
[404155075,1769885439472,-720.0,0.00019973,2]
[404155076,1769885439482,-2351.0,0.00020134,2]
[404155078,1769885439492,-2000.0,0.00020194,12]
[404155080,1769885439502,-272.23989362,0.00020618,2]
[404155082,1769885439511,-587.0,0.000208,2]
[404155084,1769885439521,-587.0,0.000208,2]
[404155087,1769885439530,-587.0,0.000208,2]
[404155089,1769885439540,-587.0,0.000208,2]
[404155091,1769885439550,-180.0,0.00020906,2]
[404155093,1769885439559,-1270.7557,0.00021233,7]
[404155095,1769885439568,-864.0,0.0002197,10]
[404155097,1769885439577,-155.88,0.00022,7]
[404155098,1769885439587,-3292.0,0.00022107,2]
[404155100,1769885439596,-308.27164424,0.00022618,2]
[404155103,1769885439605,-535.0,0.00022708,2]
[404155106,1769885439618,-562.0,0.00022708,2]
[404155108,1769885439630,-823.0,0.00022708,2]
[404155110,1769885439639,-193.0,0.00022708,2]
[404155112,1769885439649,-2000.0,0.00022934,22]
[404155114,1769885439659,-172.67072167,0.00022959,8]
[404155116,1769885439668,-250.0,0.00023113,2]
[404155118,1769885439678,-1000.0,0.00024167,10]
[404155120,1769885439691,-293.6305423,0.00024167,10]
[404155122,1769885439700,-3507.0,0.00024273,2]
[404155124,1769885439709,-172.0,0.00024603,13]
[404155126,1769885439718,-344.30339487,0.00024618,2]
[404155128,1769885439727,-150.0,0.00024658,2]
[404155130,1769885439737,-1152.0,0.00024791,2]
[404155132,1769885439746,-213.83,0.000248,2]
[404155134,1769885439754,-221.935,0.0002489,8]
[404155136,1769885439764,-300.20523241,0.00025205,2]
[404155138,1769885439773,-151.14235464,0.00025206,2]
[404155140,1769885439782,-150.0,0.00025206,2]
[404155142,1769885439793,-150.0,0.00025206,2]
[404155144,1769885439802,-201.4653447,0.00025206,2]
[404155146,1769885439811,-150.0,0.00025206,2]
[404155148,1769885439820,-500.0,0.00025206,2]
[404155150,1769885439829,-211.02010196,0.00025206,2]
[404155152,1769885439839,-500.0,0.00025206,2]
[404155154,1769885439848,-500.0,0.00025206,2]
[404155156,1769885439857,-150.0,0.00025206,2]
[404155158,1769885439867,-150.0,0.00025206,2]
[404155160,1769885439878,-150.0,0.00025206,2]
[404155162,1769885439887,-284.2999951,0.00025206,2]
[404155164,1769885439898,-208.5968267,0.00025206,2]
[404155166,1769885439907,-500.0,0.00025206,2]
[404155168,1769885439916,-150.0,0.00025206,2]
[404155170,1769885439925,-150.0,0.00025206,2]
[404155172,1769885439934,-150.0,0.00025206,2]
[404155174,1769885439943,-262.38384027,0.00025206,2]
[404155176,1769885439953,-500.0,0.00025206,2]
[404155178,1769885439962,-500.0,0.00025206,2]
[404155180,1769885439972,-150.0,0.00025206,2]
[404155182,1769885439982,-150.0,0.00025343,2]
[404155184,1769885439991,-153.75884228,0.00025343,2]
[404155186,1769885440000,-500.0,0.00025343,2]
[404155188,1769885440010,-512.85619446,0.00025343,2]
[404155190,1769885440019,-500.0,0.00025343,2]
[404155192,1769885440028,-150.0,0.00025343,2]
[404155194,1769885440037,-200.3613332,0.00025343,2]
[404155196,1769885440046,-150.0,0.00025343,2]
[404155198,1769885440056,-500.0,0.00025343,2]
[404155200,1769885440065,-150.0,0.00025343,2]
[404155202,1769885440074,-150.0,0.00025343,2]
[404155204,1769885440083,-500.0,0.00025343,2]
[404155206,1769885440092,-550.0,0.00025343,2]
[404155208,1769885440102,-239.60909828,0.00025343,2]
[404155210,1769885440110,-152.48675595,0.0002548,2]
[404155211,1769885440119,-500.0,0.0002548,2]
[404155212,1769885440133,-500.0,0.0002548,2]
[404155213,1769885440142,-150.14689112,0.0002548,2]
[404155214,1769885440151,-150.0,0.0002548,2]
[404155215,1769885440161,-500.0,0.0002548,2]
[404155216,1769885440170,-500.0,0.0002548,2]
[404155217,1769885440179,-500.0,0.00025617,2]
[404155218,1769885440197,-311.32015771,0.00025617,2]
[404155219,1769885440208,-150.0,0.00025617,2]
[404155220,1769885440218,-500.0,0.00025617,2]
[404155221,1769885440227,-500.0,0.00025617,2]
[404155222,1769885440236,-2000.0,0.00025673,32]
[404155223,1769885440246,-811.16,0.000257,14]
[404155224,1769885440255,-1041.66666667,0.00025705,2]
[404155225,1769885440264,-160.0,0.00025707,2]
[404155226,1769885440273,-160.0,0.00025707,2]
[404155227,1769885440283,-208.45746156,0.00025754,2]
[404155228,1769885440292,-150.57090573,0.00025754,2]
[404155229,1769885440301,-500.0,0.00025754,2]
[404155230,1769885440310,-500.0,0.00025754,2]
[404155231,1769885440319,-500.0,0.00025891,2]
[404155232,1769885440328,-500.0,0.00025891,2]
[404155233,1769885440338,-500.0,0.00026028,2]
[404155234,1769885440347,-522.60105806,0.00026028,2]
[404155235,1769885440356,-611.50039414,0.00026165,2]
[404155236,1769885440365,-503.84171,0.0002627,2]
[404155237,1769885440375,-5723.3641838,0.00026327,2]
[404155239,1769885440388,-576.13346643,0.00026556,2]
[404155241,1769885440398,-1000.0,0.00026584,30]
[404155243,1769885440407,-244.0,0.00026584,30]
[404155245,1769885440416,-380.3351455,0.00026618,2]
[404155247,1769885440426,-189.0,0.00026795,22]
[404155249,1769885440435,-1613.0,0.00027065,2]
[404155251,1769885440444,-150.0,0.00027397,2]
[404155253,1769885440454,-156.11938397,0.00027534,2]
[404155255,1769885440463,-500.0,0.0002777,7]
[404155257,1769885440472,-500.0,0.00027782,7]
[404155258,1769885440482,-700.0,0.00027835,7]
[404155259,1769885440491,-500.0,0.00027861,7]
[404155260,1769885440503,-213.83,0.000279,2]
[404155261,1769885440512,-700.0,0.00027906,7]
[404155262,1769885440522,-500.0,0.00028042,7]
[404155263,1769885440531,-500.0,0.0002805,7]
[404155264,1769885440540,-700.0,0.00028055,7]
[404155265,1769885440550,-500.0,0.00028104,7]
[404155266,1769885440559,-151.62002564,0.00028208,7]
[404155267,1769885440568,-700.0,0.00028312,7]
[404155268,1769885440577,-700.0,0.0002839,7]
[404155269,1769885440587,-700.0,0.00028398,7]
[404155270,1769885440596,-2000.0,0.00028413,42]
[404155271,1769885440606,-500.0,0.00028429,7]
[404155273,1769885440616,-700.0,0.00028429,7]
[404155275,1769885440632,-500.0,0.00028462,7]
[404155277,1769885440641,-700.0,0.00028463,7]
[404155279,1769885440650,-500.0,0.00028511,7]
[404155280,1769885440660,-700.0,0.00028518,7]
[404155282,1769885440670,-500.0,0.00028615,7]
[404155284,1769885440681,-416.36689612,0.00028618,2]
[404155286,1769885440690,-500.0,0.00028676,7]
[404155288,1769885440702,-700.0,0.00028679,7]
[404155290,1769885440712,-500.0,0.00028734,7]
[404155292,1769885440721,-500.0,0.00028736,7]
[404155294,1769885440731,-888.23,0.00028736,2]
[404155296,1769885440740,-700.0,0.00028763,7]
[404155298,1769885440750,-500.0,0.00028806,7]
[404155300,1769885440760,-700.0,0.00028855,7]
[404155302,1769885440769,-166.0,0.00028986,32]
[404155304,1769885440779,-700.0,0.00029029,7]
[404155306,1769885440788,-500.0,0.00029041,7]
[404155308,1769885440798,-700.0,0.0002906,7]
[404155310,1769885440809,-500.0,0.000291,7]
[404155312,1769885440819,-178.92208645,0.00029139,5]
[404155314,1769885440829,-157.43607312,0.00029139,5]
[404155316,1769885440838,-700.0,0.00029205,7]
[404155318,1769885440848,-1000.0,0.00029242,30]
[404155320,1769885440858,-492.0,0.00029242,30]
[404155322,1769885440867,-700.0,0.00029248,7]
[404155324,1769885440880,-811.16,0.000293,14]
[404155326,1769885440889,-500.0,0.0002935,7]
[404155328,1769885440900,-500.0,0.00029375,7]
[404155330,1769885440910,-500.0,0.00029493,7]
[404155332,1769885440919,-2258.0,0.00029547,2]
[404155334,1769885440929,-500.0,0.00029553,7]
[404155336,1769885440938,-500.0,0.00029608,7]
[404155338,1769885440948,-500.0,0.00029689,7]
[404155340,1769885440957,-503.84171,0.00029695,60]
[404155342,1769885440966,-700.0,0.0002976,7]
[404155344,1769885440976,-500.0,0.00029765,7]
[404155346,1769885440984,-700.0,0.00029775,7]
[404155348,1769885440994,-500.0,0.00029785,7]
[404155350,1769885441004,-500.0,0.00029819,7]
[404155352,1769885441013,-500.0,0.0002992,7]
[404155354,1769885441023,-700.0,0.00029951,7]
[404155356,1769885441032,-700.0,0.0002997,7]
[404155358,1769885441041,-157.34,0.000301,7]
[404155360,1769885441051,-213.83,0.000301,2]
[404155362,1769885441060,-500.0,0.00030123,7]
[404155364,1769885441070,-500.0,0.0003013,7]
[404155366,1769885441079,-500.0,0.00030156,7]
[404155368,1769885441088,-500.0,0.00030205,7]
[404155370,1769885441098,-700.0,0.0003021,7]
[404155372,1769885441107,-700.0,0.00030258,7]
[404155374,1769885441117,-500.0,0.00030276,7]
[404155376,1769885441131,-700.0,0.00030285,7]
[404155378,1769885441140,-700.0,0.00030329,7]
[404155380,1769885441150,-700.0,0.00030465,7]
[404155382,1769885441160,-242.81521,0.000305,120]
[404155384,1769885441169,-200.0,0.000305,120]
[404155386,1769885441179,-200.0,0.000305,120]
[404155388,1769885441188,-755.95088949,0.0003055,7]
[404155390,1769885441197,-799.27363586,0.00030571,7]
[404155392,1769885441207,-624.19749998,0.00030592,7]
[404155394,1769885441216,-452.39864675,0.00030618,2]
[404155396,1769885441226,-206.24088796,0.00031,120]
[404155398,1769885441235,-198.07485528,0.00031,120]
[404155400,1769885441245,-178.8674121,0.00031,120]
[404155402,1769885441255,-162.33069799,0.00031,120]
[404155404,1769885441264,-193.78459303,0.00031,120]
[404155406,1769885441274,-201.27166769,0.00031,120]
[404155408,1769885441283,-162.93564151,0.00031,120]
[404155410,1769885441293,-184.52113141,0.00031,120]
[404155423,1769885441410,-260.78391882,0.00031,120]
[404155425,1769885441420,-184.3161173,0.00031,120]
[404155427,1769885441430,-164.57044202,0.00031,120]
[404155429,1769885441439,-220.84246738,0.00031,120]
[404155431,1769885441449,-150.0,0.00031058,2]
[404155433,1769885441460,-150.0,0.00031058,2]
[404155435,1769885441470,-150.0,0.00031058,2]
[404155437,1769885441480,-150.0,0.00031058,2]
[404155439,1769885441489,-150.0,0.00031058,2]
[404155441,1769885441499,-202.37064087,0.00031058,2]
[404155443,1769885441509,-250.9368634,0.00031058,2]
[404155445,1769885441518,-500.0,0.00031058,2]
[404155447,1769885441528,-2000.0,0.00031153,52]
[404155449,1769885441537,-180.0,0.00031178,44]
[404155451,1769885441548,-150.0,0.00031195,2]
[404155453,1769885441557,-150.64989022,0.00031195,2]
[404155455,1769885441567,-150.0,0.00031195,2]
[404155457,1769885441576,-150.0,0.00031195,2]
[404155459,1769885441586,-500.0,0.00031195,2]
[404155461,1769885441596,-200.0,0.00031332,2]
[404155463,1769885441605,-300.0,0.00031332,2]
[404155465,1769885441615,-201.27166769,0.000319,120]
[404155467,1769885441633,-155.88,0.00032,7]
[404155469,1769885441643,-1000.0,0.00032166,30]
[404155471,1769885441652,-791.0,0.00032166,30]
[404155473,1769885441662,-200.0,0.000322,120]
[404155475,1769885441673,-200.0,0.000322,120]
[404155477,1769885441682,-5324.7772,0.0003222,30]
[404155479,1769885441695,-3162.0,0.00032257,2]
[404155481,1769885441706,-168.0,0.00032505,2]
[404155482,1769885441716,-168.0,0.00032574,2]
[404155484,1769885441726,-488.43039737,0.00032618,2]
[404155486,1769885441736,-168.0,0.00032633,2]
[404155487,1769885441745,-168.0,0.0003276,2]
[404155488,1769885441755,-500.0,0.00032876,10]
[404155489,1769885441764,-500.0,0.00032876,10]
[404155490,1769885441773,-500.0,0.00032876,10]
[404155491,1769885441782,-500.0,0.00032876,10]
[404155492,1769885441791,-500.0,0.00032876,10]
[404155494,1769885441801,-500.0,0.00032876,10]
[404155496,1769885441809,-500.0,0.00032876,10]
[404155498,1769885441819,-500.0,0.00032876,10]
[404155500,1769885441829,-500.0,0.00032876,10]
[404155501,1769885441838,-500.0,0.00032876,10]
[404155503,1769885441848,-500.0,0.00032876,10]
[404155505,1769885441857,-500.0,0.00032876,10]
[404155507,1769885441867,-500.0,0.00032876,10]
[404155509,1769885441880,-500.0,0.00032876,10]
[404155511,1769885441890,-500.0,0.00032876,10]
[404155513,1769885441899,-500.0,0.00032876,10]
[404155514,1769885441908,-500.0,0.00032876,10]
[404155516,1769885441918,-500.0,0.00032876,10]
[404155518,1769885441928,-1746.86,0.00032877,10]
[404155520,1769885441937,-1455.72,0.00032877,10]
[404155522,1769885441947,-147847.55600796,0.00033026,4]
[404155523,1769885441956,-503.84171,0.0003312,60]
[404155525,1769885441966,-168.0,0.00033141,2]
[404155527,1769885441975,-168.0,0.00033205,2]
[404155529,1769885441985,-58537.9220094,0.00033321,2]
[404155531,1769885441995,-226.4112131,0.0003338,2]
[404155533,1769885442004,-234.67,0.00033464,60]
[404155534,1769885442014,-168.0,0.00033498,2]
[404155536,1769885442025,-667.2838562,0.00033561,2]
[404155538,1769885442034,-234.67,0.00033564,60]
[404155539,1769885442044,-234.67,0.00033664,60]
[404155540,1769885442053,-168.0,0.00033679,2]
[404155541,1769885442063,-393.72,0.00033698,30]
[404155542,1769885442072,-811.16,0.000337,30]
[404155543,1769885442081,-234.67,0.00033764,60]
[404155544,1769885442091,-671.0,0.00033774,11]
[404155545,1769885442101,-881.5548231,0.00033835,3]
[404155546,1769885442110,-234.67,0.00033864,60]
[404155547,1769885442120,-2000.0,0.00033893,62]
[404155548,1769885442133,-200.0,0.000339,120]
[404155549,1769885442143,-200.0,0.000339,120]
[404155550,1769885442153,-192.5790002,0.00033936,2]
[404155551,1769885442162,-234.67,0.00033964,60]
[404155552,1769885442172,-234.67,0.00034064,60]
[404155553,1769885442182,-234.67,0.00034164,60]
[404155554,1769885442192,-234.67,0.00034264,60]
[404155555,1769885442203,-168.0,0.00034283,2]
[404155556,1769885442212,-168.0,0.00034318,2]
[404155557,1769885442222,-234.67,0.00034364,60]
[404155558,1769885442232,-234.67,0.00034464,60]
[404155559,1769885442241,-177.0,0.00034466,69]
[404155560,1769885442250,-393.72,0.0003452,31]
[404155561,1769885442260,-748.0,0.00034546,11]
[404155562,1769885442270,-234.67,0.00034564,60]
[404155563,1769885442280,-510.19747855,0.00034575,5]
[404155564,1769885442290,-168.0,0.00034604,2]
[404155565,1769885442300,-1037.04023957,0.00034606,2]
[404155569,1769885442311,-524.462148,0.00034618,120]
[404155571,1769885442320,-168.0,0.00034685,2]
[404155573,1769885442330,-473.72009279,0.00034705,2]
[404155575,1769885442340,-234.67,0.00034764,60]
[404155577,1769885442349,-473.72009279,0.00034805,2]
[404155579,1769885442359,-168.0,0.0003485,2]
[404155581,1769885442368,-234.67,0.00034864,60]
[404155582,1769885442380,-473.72009279,0.00034905,2]
[404155583,1769885442390,-234.67,0.00034964,60]
[404155584,1769885442399,-151.0,0.00035,10]
[404155585,1769885442408,-473.72009279,0.00035005,2]
[404155586,1769885442418,-400.0,0.00035073,11]
[404155587,1769885442427,-473.72009279,0.00035105,2]
[404155588,1769885442437,-234.67,0.00035164,60]
[404155589,1769885442446,-473.72009279,0.00035205,2]
[404155590,1769885442455,-4427.0,0.00035216,2]
[404155591,1769885442464,-234.67,0.00035264,60]
[404155592,1769885442474,-225.28,0.00035264,60]
[404155593,1769885442484,-710.0,0.00035304,11]
[404155594,1769885442494,-473.72009279,0.00035305,2]
[404155595,1769885442503,-393.72,0.00035342,32]
[404155596,1769885442513,-234.67,0.00035364,60]
[404155597,1769885442523,-1000.0,0.00035383,30]
[404155598,1769885442533,-1000.0,0.00035383,30]
[404155599,1769885442543,-1001.860426,0.000354,21]
[404155600,1769885442552,-473.72009279,0.00035405,2]
[404155601,1769885442562,-234.67,0.00035464,60]
[404155602,1769885442572,-473.72009279,0.00035505,2]
[404155603,1769885442582,-168.0,0.00035526,2]
[404155604,1769885442591,-234.67,0.00035564,60]
[404155605,1769885442601,-710.0,0.0003559,11]
[404155606,1769885442610,-200.0,0.000356,120]
[404155607,1769885442620,-200.0,0.000356,120]
[404155608,1769885442637,-234.67,0.00035664,60]
[404155609,1769885442647,-225.28,0.00035664,60]
[404155610,1769885442659,-234.67,0.00035764,60]
[404155611,1769885442669,-225.28,0.00035764,60]
[404155612,1769885442679,-234.67,0.00035864,60]
[404155613,1769885442690,-225.28,0.00035864,60]
[404155614,1769885442702,-1000.0,0.000359,21]
[404155615,1769885442713,-234.67,0.00035964,60]
[404155616,1769885442723,-225.28,0.00035964,60]
[404155617,1769885442733,-546.82243784,0.00035975,2]
[404155618,1769885442742,-1000.0,0.00036,120]
[404155619,1769885442753,-200.0,0.00036063,10]
[404155620,1769885442763,-200.0,0.00036063,10]
[404155621,1769885442772,-15976.007438,0.00036063,2]
[404155622,1769885442782,-234.67,0.00036064,60]
[404155623,1769885442793,-1078.116076,0.00036064,60]
[404155624,1769885442803,-754.681253,0.00036064,60]
[404155625,1769885442813,-605.5062385,0.00036075,2]
[404155626,1769885442823,-605.5062385,0.00036075,2]
[404155627,1769885442832,-605.5062385,0.00036075,2]
[404155628,1769885442842,-605.5062385,0.00036075,2]
[404155629,1769885442858,-5580.52,0.000361,14]
[404155630,1769885442879,-605.5062385,0.00036103,2]
[404155631,1769885442892,-605.5062385,0.00036103,2]
[404155632,1769885442902,-605.5062385,0.00036103,2]
[404155633,1769885442913,-605.5062385,0.00036103,2]
[404155634,1769885442925,-605.5062385,0.00036103,2]
[404155635,1769885442935,-699.3888609,0.00036103,2]
[404155636,1769885442946,-92189.90327472,0.00036103,2]
[404155638,1769885442957,-300.0,0.00036103,2]
[404155639,1769885442967,-22888.83161499,0.00036103,2]
[404155640,1769885442977,-3922.4883003,0.00036103,2]
[404155641,1769885442988,-817.90078901,0.00036103,2]
[404155642,1769885442998,-260.78712638,0.00036103,2]
[404155643,1769885443009,-330.23197963,0.00036103,2]
[404155645,1769885443021,-294.72415654,0.00036103,2]
[404155647,1769885443033,-52235.44829335,0.00036103,2]
[404155648,1769885443044,-643.54349728,0.00036103,2]
[404155650,1769885443055,-1375.30912305,0.00036103,2]
[404155651,1769885443067,-158.16649023,0.00036103,2]
[404155653,1769885443077,-968.2453051,0.00036103,2]
[404155654,1769885443091,-709.49854537,0.00036103,2]
[404155656,1769885443100,-21787.77564503,0.00036103,2]
[404155657,1769885443111,-6361.83076416,0.00036103,2]
[404155658,1769885443124,-159.17567,0.00036103,2]
[404155660,1769885443142,-1734.2061534,0.00036103,2]
[404155664,1769885443155,-7557.19449131,0.00036103,2]
[404155666,1769885443166,-512.51283611,0.00036103,2]
[404155670,1769885443178,-185.661807,0.00036103,2]
[404155672,1769885443192,-472.39557315,0.00036103,2]
[404155674,1769885443205,-30748.24755637,0.00036103,2]
[404155677,1769885443219,-190.97205853,0.00036103,2]
[404155679,1769885443231,-1206.5330604,0.00036103,2]
[404155680,1769885443243,-1410.26178838,0.00036103,2]
[404155682,1769885443255,-657.40696742,0.00036103,2]
[404155684,1769885443265,-864.57899455,0.00036103,2]
[404155686,1769885443276,-2920.0,0.00036103,2]
[404155688,1769885443285,-193744.83883441,0.00036103,2]
[404155689,1769885443295,-200.04371493,0.00036103,2]
[404155690,1769885443304,-389.21178056,0.00036103,2]
[404155691,1769885443313,-203.26646945,0.00036103,2]
[404155693,1769885443329,-3178.25566413,0.00036103,2]
[404155695,1769885443350,-168.15859355,0.00036103,2]
[404155696,1769885443362,-178880.76970936,0.00036103,2]
[404155698,1769885443371,-151.77483509,0.00036103,2]
[404155699,1769885443383,-261.0027218,0.00036103,2]
[404155700,1769885443393,-3803.44495352,0.00036103,2]
[404155701,1769885443403,-675.43566846,0.00036103,2]
[404155702,1769885443412,-1676.30213801,0.00036103,2]
[404155703,1769885443421,-326.75503275,0.00036103,2]
[404155704,1769885443430,-173298.62771791,0.00036103,5]
[404155705,1769885443438,-328.57716098,0.00036103,2]
[404155706,1769885443448,-700.36502519,0.00036103,5]
[404155707,1769885443457,-258.44354571,0.00036103,2]
[404155708,1769885443466,-150.0,0.00036103,10]
[404155709,1769885443475,-5000.0,0.00036103,20]
[404155710,1769885443485,-3077.5317824,0.00036106,2]
[404155711,1769885443495,-234.67,0.00036164,60]
[404155712,1769885443504,-393.72,0.00036164,33]
[404155713,1769885443513,-234.67,0.00036364,60]
[404155714,1769885443523,-500.0,0.00036381,15]
[404155715,1769885443532,-18594.1094417,0.00036384,15]
[404155716,1769885443541,-3110.57825628,0.00036385,3]
[404155717,1769885443551,-325.3702428,0.00036385,3]
[404155718,1769885443560,-313.43403494,0.00036385,3]
[404155719,1769885443570,-732.54528576,0.00036385,3]
[404155720,1769885443579,-1000.0,0.000364,21]
[404155721,1769885443588,-234.67,0.00036464,60]
[404155722,1769885443597,-503.84171,0.00036544,60]
[404155723,1769885443606,-234.67,0.00036564,60]
[404155724,1769885443616,-560.49389862,0.00036618,120]
[404155725,1769885443630,-2000.0,0.00036632,120]
[404155726,1769885443640,-234.67,0.00036664,60]
[404155727,1769885443672,-234.67,0.00036764,60]
[404155728,1769885443682,-167.0,0.00036797,120]
[404155729,1769885443691,-196.0,0.00036806,120]
[404155730,1769885443701,-234.67,0.00036864,60]
[404155731,1769885443710,-234.67,0.00036964,60]
[404155732,1769885443719,-393.72,0.00036986,34]
[404155733,1769885443729,-169.9437498,0.00037,120]
[404155734,1769885443738,-811.16,0.00037,30]
[404155735,1769885443748,-157.34,0.000371,7]
[404155736,1769885443757,-667.2838562,0.00037134,2]
[404155737,1769885443766,-200.0,0.000373,120]
[404155738,1769885443775,-393.72,0.00037808,35]
[404155739,1769885443784,-3628.0,0.00038446,5]
[404155740,1769885443794,-596.52564925,0.00038618,120]
[404155741,1769885443804,-393.72,0.0003863,36]
[404155742,1769885443813,-167.0,0.00038637,120]
[404155743,1769885443822,-196.0,0.00038646,120]
[404155744,1769885443832,-2000.0,0.00038676,7]
[404155745,1769885443841,-1000.0,0.00038921,60]
[404155746,1769885443850,-1000.0,0.00038921,60]
[404155747,1769885443859,-579.0,0.00038921,60]
[404155748,1769885443869,-215.623215,0.00038949,60]
[404155749,1769885443881,-343.06353,0.00039,120]
[404155750,1769885443891,-2000.0,0.00039372,120]
[404155751,1769885443900,-393.72,0.00039452,37]
[404155752,1769885443910,-5580.52,0.000395,14]
[404155753,1769885443919,-155.88,0.000395,7]